bitfinex/quotes_SOLUSD_20250619
["timestamp","ask_amount","ask_price","bid_price","bid_amount"]
[1750356356402,26.0,145.4,145.36,29.86104586]
[1750356356609,11.211397,145.44,145.39,11.211397]
[1750356356811,37.211397,145.44,145.39,11.211397]
[1750356357009,11.211397,145.43,145.4,6.87757909]
[1750356357218,26.0,145.44,145.4,24.07152682]
[1750356357441,26.0,145.44,145.41,11.211397]
[1750356357618,5.12940577,145.48,145.42,11.211397]
[1750356357818,37.211397,145.46,145.42,11.211397]
[1750356358011,37.211397,145.46,145.4,42.72117568]
[1750356358012,11.211397,145.47,145.43,11.211397]
[1750356358214,11.211397,145.48,145.43,11.211397]
[1750356358416,37.211397,145.48,145.43,11.211397]
[1750356358812,11.211397,145.48,145.44,11.211397]
[1750356359020,11.211397,145.49,145.45,18.08661185]
[1750356359335,11.211397,145.48,145.45,6.87521485]
[1750356360826,37.211397,145.49,145.45,18.08661185]
[1750356362345,37.211397,145.49,145.45,6.87521485]
[1750356362540,37.211397,145.49,145.45,18.08661185]
[1750356363656,26.0,145.49,145.46,11.211397]
[1750356364151,26.0,145.49,145.47,11.211397]
[1750356364351,26.0,145.49,145.46,29.86104586]
[1750356364734,37.211397,145.5,145.46,29.86104586]
[1750356365044,37.211397,145.5,145.47,6.8742696]
[1750356365436,11.211397,145.49,145.47,6.8742696]
[1750356366729,26.0,145.5,145.47,6.8742696]
[1750356366932,37.211397,145.5,145.47,6.8742696]
[1750356367162,26.0,145.5,145.47,18.0856666]
[1750356367700,26.0,145.5,145.47,35.27134062]
[1750356367867,11.391397,145.52,145.48,11.211397]
[1750356368062,11.211397,145.51,145.48,87.7]
[1750356369078,26.18,145.52,145.48,87.7]
[1750356369378,11.211397,145.51,145.48,94.57374441]
[1750356371266,37.211397,145.5,145.48,94.57374441]
[1750356371896,26.0,145.5,145.48,94.57374441]
[1750356372403,11.211397,145.51,145.48,94.57374441]
[1750356372898,11.211397,145.5,145.48,94.57374441]
[1750356373572,26.18,145.52,145.48,94.57354623]
[1750356373775,37.391397,145.52,145.48,105.78494323]
[1750356373989,0.18,145.52,145.51,11.211397]
[1750356374176,0.18,145.52,145.51,98.911397]
[1750356374371,0.18,145.52,145.51,127.591397]
[1750356374569,0.18,145.52,145.51,135.02964886]
[1750356374985,0.18,145.52,145.51,146.24104586]
[1750356375199,0.18,145.52,145.51,87.7]
[1750356375504,0.18,145.52,145.51,124.43342576]
[1750356377695,0.18,145.52,145.51,94.5723799]
[1750356378004,0.18,145.52,145.51,36.73342576]
[1750356381399,0.18,145.52,145.51,6.8723799]
[1750356381578,0.18,145.52,145.51,36.73342576]
[1750356384000,0.18,145.52,145.51,124.43342576]
[1750356384187,0.18,145.52,145.51,135.64482276]
[1750356384505,1.5626,145.65,145.52,20.29024886]
[1750356384689,26.0,145.62,145.59,11.211397]
[1750356384871,1.5626,145.65,145.59,11.211397]
[1750356385072,9.94212509,145.67,145.61,11.211397]
[1750356385306,11.211397,145.65,145.61,28.66]
[1750356385505,11.211397,145.65,145.61,39.871397]
[1750356385681,26.0,145.67,145.61,18.64964886]
[1750356385886,37.211397,145.67,145.64,6.86624553]
[1750356386389,11.211397,145.69,145.64,6.86624553]
[1750356386703,37.211397,145.65,145.6,28.66]
[1750356386903,11.211397,145.63,145.59,11.211397]
[1750356387072,27.6439,145.65,145.57,6.86954729]
[1750356387073,11.211397,145.6,145.57,6.86954729]
[1750356387277,11.211397,145.6,145.52,11.211397]
[1750356387494,26.0,145.61,145.53,11.211397]
[1750356387703,26.0,145.58,145.56,11.211397]
[1750356387877,26.0,145.58,145.55,18.64964886]
[1750356388078,13.02991692,145.64,145.57,11.211397]
[1750356388277,37.211397,145.61,145.57,11.211397]
[1750356388887,45.12299913,145.61,145.57,19.12299913]
[1750356389604,45.12299913,145.61,145.58,6.86907542]
[1750356391181,6.1634,145.64,145.58,43.1647631]
[1750356391382,6.1634,145.64,145.59,19.12299913]
[1750356391383,19.12299913,145.63,145.59,19.12299913]
[1750356391581,19.12299913,145.63,145.6,6.86813186]
[1750356392476,19.12299913,145.62,145.6,6.86813186]
[1750356392678,19.12299913,145.61,145.54,19.12299913]
[1750356393011,19.12299913,145.57,145.54,28.64]
[1750356393622,19.12299913,145.58,145.55,6.87049124]
[1750356393982,19.12299913,145.58,145.54,18.64964886]
[1750356393983,19.12299913,145.56,145.54,25.52048603]
[1750356394287,19.12299913,145.55,145.54,6.87083717]
[1750356394488,19.12299913,145.55,145.52,18.64964886]
[1750356394687,19.12299913,145.54,145.51,6.38]
[1750356395300,19.12299913,145.54,145.52,6.87189011]
[1750356397188,32.86875331,145.59,145.52,6.87189011]
[1750356397393,19.12299913,145.55,145.52,6.87189011]
[1750356400617,19.12299913,145.54,145.52,6.87189011]
[1750356400801,19.12299913,145.55,145.52,6.87189011]
[1750356401623,19.12299913,145.55,145.52,94.57189011]
[1750356402013,26.0,145.59,145.54,19.12299913]
[1750356402299,5.10349988,145.62,145.55,19.12299913]
[1750356402507,5.10349988,145.64,145.57,19.12299913]
[1750356402731,19.12299913,145.61,145.57,19.12299913]
[1750356403024,19.12299913,145.62,145.58,19.12299913]
[1750356403225,19.12299913,145.62,145.57,18.64964886]
[1750356403528,19.12299913,145.62,145.58,19.12299913]
[1750356403730,19.12299913,145.62,145.59,6.86860361]
[1750356404108,19.12299913,145.62,145.59,24.04011264]
[1750356405144,5.10349988,145.64,145.59,24.04011264]
[1750356405352,19.12299913,145.62,145.59,24.04011264]
[1750356405955,19.12299913,145.61,145.59,24.04011264]
[1750356407235,5.10641164,145.64,145.59,24.04011264]
[1750356407433,19.12299913,145.62,145.59,17.17150903]
[1750356407634,5.10641164,145.64,145.59,17.17150903]
[1750356407947,33.8611,145.65,145.59,36.29450816]
[1750356408150,19.12299913,145.64,145.6,19.12299913]
[1750356408353,26.0,145.65,145.62,19.12299913]
[1750356408556,45.12299913,145.65,145.61,19.12299913]
[1750356408968,19.12299913,145.65,145.61,19.12299913]
[1750356409172,26.0,145.65,145.6,18.64964886]
[1750356409359,45.12299913,145.65,145.61,19.12299913]
[1750356409674,8.0781,145.69,145.62,25.9901877]
[1750356409860,45.12299913,145.66,145.62,43.15815913]
[1750356410372,19.12299913,145.65,145.62,6.86718857]
[1750356410957,19.12299913,145.64,145.62,6.86718857]
[1750356411467,19.12299913,145.64,145.61,6.86766018]
[1750356411683,45.12299913,145.66,145.62,19.12299913]
[1750356411882,26.0,145.66,145.62,19.12299913]
[1750356412079,45.12299913,145.66,145.62,19.12299913]
[1750356412967,19.12299913,145.65,145.62,19.12299913]
[1750356413353,26.0,145.66,145.62,19.12299913]
[1750356413552,19.12299913,145.65,145.62,19.12299913]
[1750356413770,19.12299913,145.65,145.63,6.86671702]
[1750356414576,26.0,145.66,145.63,6.86671702]
[1750356414774,19.12299913,145.65,145.63,6.86671702]
[1750356414956,11.14775637,145.65,145.62,11.14775637]
[1750356415275,11.14775637,145.65,145.61,35.18456702]
[1750356415579,26.0,145.66,145.61,35.18456702]
[1750356415980,11.14775637,145.64,145.61,18.01541655]
[1750356416684,11.14775637,145.64,145.61,6.86766018]
[1750356417465,11.14775637,145.62,145.61,6.86766018]
[1750356418561,11.14775637,145.62,145.59,24.03902798]
[1750356419484,11.14775637,145.62,145.59,6.86860361]
[1750356419979,11.14775637,145.61,145.59,6.86860361]
[1750356420480,11.14775637,145.62,145.59,6.86860361]
[1750356421058,26.0,145.66,145.59,18.01635998]
[1750356421258,37.14775637,145.63,145.59,105.71635998]
[1750356421677,5.11941688,145.66,145.6,11.14775637]
[1750356421868,11.14775637,145.64,145.6,98.84775637]
[1750356422261,11.14775637,145.65,145.61,11.14775637]
[1750356422465,5.11941688,145.68,145.61,11.14775637]
[1750356422670,37.14775637,145.65,145.62,6.86718857]
[1750356424088,11.14775637,145.64,145.62,6.86718857]
[1750356425377,11.14775637,145.64,145.62,94.56718857]
[1750356425577,26.0,145.65,145.62,94.56718857]
[1750356425887,11.14775637,145.64,145.62,94.56718857]
[1750356426596,11.14775637,145.63,145.62,87.7]
[1750356426777,11.14775637,145.63,145.61,94.56761231]
[1750356426957,11.14775637,145.62,145.61,87.7]
[1750356427164,11.14775637,145.62,145.6,87.7]
[1750356427366,11.14775637,145.61,145.6,87.7]
[1750356427581,26.0,145.62,145.57,6.86954729]
[1750356427897,11.14775637,145.61,145.57,105.71730366]
[1750356430072,37.14775637,145.62,145.59,6.86860361]
[1750356430773,11.14775637,145.61,145.59,6.86860361]
[1750356431377,11.14775637,145.61,145.58,6.86907542]
[1750356434166,11.14775637,145.61,145.58,94.56907542]
[1750356436089,11.14775637,145.59,145.57,87.7]
[1750356436289,26.0,145.61,145.57,94.56947812]
[1750356436496,11.14775637,145.59,145.57,94.56947812]
[1750356437598,11.14775637,145.58,145.57,87.7]
[1750356437973,11.14775637,145.58,145.57,94.56954729]
[1750356438885,11.14775637,145.58,145.54,6.8709633]
[1750356439085,11.14775637,145.55,145.52,87.7]
[1750356439699,11.14775637,145.55,145.53,6.87120386]
[1750356440295,26.0,145.58,145.53,6.87120386]
[1750356440479,11.14775637,145.56,145.53,6.87120386]
[1750356440878,11.14775637,145.55,145.53,6.87120386]
[1750356441899,11.14775637,145.54,145.53,6.87120386]
[1750356443101,11.14775637,145.54,145.52,94.5717107]
[1750356443299,1.5715,145.57,145.52,94.5717107]
[1750356443506,11.14775637,145.54,145.52,94.5717107]
[1750356445207,11.14775637,145.54,145.53,28.6]
[1750356446079,11.14775637,145.54,145.53,94.57143544]
[1750356447713,11.14775637,145.55,145.53,123.17143544]
[1750356448606,26.0,145.55,145.53,94.57143544]
[1750356448803,11.14775637,145.54,145.53,94.57143544]
[1750356449802,37.14775637,145.55,145.53,94.57143544]
[1750356449988,11.14775637,145.54,145.53,94.57143544]
[1750356453201,1.5715,145.57,145.53,94.57143544]
[1750356453402,11.14775637,145.55,145.53,94.57143544]
[1750356453994,26.0,145.56,145.53,94.57143544]
[1750356454204,1.6003,145.61,145.56,6.87001923]
[1750356454403,12.74805637,145.61,145.57,28.58]
[1750356454792,38.74805637,145.61,145.57,28.58]
[1750356455625,11.14775637,145.6,145.57,28.58]
[1750356456198,11.14775637,145.6,145.58,6.86907542]
[1750356456506,11.14775637,145.59,145.57,6.86936086]
[1750356456812,11.14775637,145.58,145.57,6.86936086]
[1750356457130,11.14775637,145.58,145.54,28.58]
[1750356457300,11.14775637,145.57,145.54,35.45079103]
[1750356457817,11.14775637,145.57,145.54,28.58]
[1750356458237,11.14775637,145.57,145.53,18.01898888]
[1750356458517,11.14775637,145.55,145.53,28.58]
[1750356458705,11.14775637,145.55,145.52,35.45170632]
[1750356458910,11.14775637,145.55,145.51,18.0200243]
[1750356459099,11.14775637,145.55,145.52,28.58]
[1750356459596,11.14775637,145.53,145.5,100.91263598]
[1750356459797,11.14775637,145.53,145.5,129.49263598]
[1750356460431,11.14775637,145.54,145.5,140.64039235]
[1750356461103,11.14775637,145.54,145.51,28.58]
[1750356462014,11.14775637,145.54,145.51,6.87212691]
[1750356462550,13.28234909,145.57,145.51,6.87212691]
[1750356463045,11.14775637,145.57,145.52,39.72775637]
[1750356463214,11.14775637,145.56,145.52,39.72775637]
[1750356463916,11.14775637,145.56,145.53,6.87143544]
[1750356465545,11.14775637,145.56,145.53,94.57143544]
[1750356466652,11.14775637,145.54,145.53,94.57143544]
[1750356466848,11.14775637,145.55,145.53,94.57143544]
[1750356470829,79.0354276,145.61,145.53,94.57143544]
[1750356470830,6.40318105,145.65,145.58,18.64964886]
[1750356471030,5.12712852,145.66,145.62,11.14775637]
[1750356471253,16.27488489,145.66,145.62,28.56]
[1750356471456,11.14775637,145.65,145.62,28.56]
[1750356471756,11.14775637,145.65,145.61,39.70775637]
[1750356472064,17.84848489,145.67,145.62,11.14775637]
[1750356472423,11.14775637,145.66,145.61,28.56]
[1750356472627,11.14775637,145.66,145.61,39.70775637]
[1750356472855,11.14775637,145.65,145.62,6.86718857]
[1750356473353,11.14775637,145.64,145.61,35.42751883]
[1750356476259,13.56556483,145.67,145.61,123.12751883]
[1750356476464,11.14775637,145.64,145.61,123.12751883]
[1750356477751,11.14775637,145.64,145.61,94.56751883]
[1750356478962,6.70072852,145.67,145.62,11.14775637]
[1750356479144,6.70072852,145.67,145.62,39.70775637]
[1750356479145,1.5736,145.67,145.62,39.70775637]
[1750356479357,11.14775637,145.67,145.63,11.14775637]
[1750356479545,11.14775637,145.66,145.63,6.86671702]
[1750356479858,11.14775637,145.66,145.63,94.56671702]
[1750356480665,11.99129178,145.69,145.63,94.56671702]
[1750356480848,11.14775637,145.66,145.63,94.56671702]
[1750356482669,5.12712852,145.69,145.64,18.64964886]
[1750356482973,1.4749254,145.76,145.69,18.64964886]
[1750356483176,1.4749254,145.76,145.75,11.14775637]
[1750356483476,1.4749254,145.76,145.75,47.18964886]
[1750356483842,1.4749254,145.76,145.75,65.19846869]
[1750356484166,1.4749254,145.76,145.75,54.05071232]
[1750356484371,1.4749254,145.76,145.75,36.65846869]
[1750356484666,1.4749254,145.76,145.75,65.19846869]
[1750356485556,1.4749254,145.76,145.75,54.05071232]
[1750356485750,1.4749254,145.76,145.75,65.19846869]
[1750356487968,6.8544794,145.89,145.76,44.64964886]
[1750356488272,26.0,145.89,145.84,11.14775637]
[1750356488574,10.9577625,145.91,145.85,28.54]
[1750356488879,10.9577625,145.91,145.89,11.14775637]
[1750356489164,10.9577625,145.91,145.85,28.54]
[1750356489165,22.10551887,145.91,145.86,11.14775637]
[1750356489371,10.9577625,145.91,145.85,28.54]
[1750356489553,10.9577625,145.91,145.9,11.14775637]
[1750356489942,10.9577625,145.91,145.9,18.00176596]
[1750356490147,10.9577625,145.91,145.9,6.85400959]
[1750356490673,10.9577625,145.91,145.9,18.00176596]
[1750356490880,10.9577625,145.91,145.9,25.8905287]
[1750356491049,10.9577625,145.91,145.89,6.85438053]
[1750356491243,10.9577625,145.91,145.88,25.89134818]
[1750356491455,10.9577625,145.91,145.89,19.03651911]
[1750356491644,19.03651911,145.94,145.89,19.03651911]
[1750356491870,27.5084,145.95,145.9,6.85400959]
[1750356492581,19.03651911,145.96,145.92,19.03651911]
[1750356493090,19.03651911,145.96,145.91,19.03651911]
[1750356493263,19.03651911,145.95,145.9,6.85400959]
[1750356493584,19.03651911,145.91,145.88,6.85494927]
[1750356493777,19.03651911,145.89,145.85,6.8558924]
[1750356494074,19.03651911,145.86,145.83,6.85729959]
[1750356494375,6.85361703,145.91,145.83,44.54346756]
[1750356494576,19.03651911,145.87,145.83,25.50694845]
[1750356494775,19.03651911,145.88,145.84,37.68616797]
[1750356495284,45.03651911,145.9,145.86,19.03651911]
[1750356495459,19.03651911,145.88,145.83,52.50054857]
[1750356495771,19.03651911,145.88,145.84,37.68616797]
[1750356495951,19.03651911,145.88,145.85,6.85635927]
[1750356496688,19.03651911,145.86,145.81,6.85824017]
[1750356496843,25.21671911,145.89,145.81,6.85824017]
[1750356497052,19.03651911,145.86,145.82,19.03651911]
[1750356497250,6.1802,145.89,145.82,19.03651911]
[1750356497592,19.03651911,145.83,145.81,6.85824017]
[1750356497742,19.03651911,145.82,145.81,6.85824017]
[1750356497943,19.03651911,145.82,145.8,6.85871056]
[1750356498576,19.03651911,145.81,145.8,6.85871056]
[1750356499888,19.03651911,145.81,145.76,6.86059275]
[1750356500054,19.03651911,145.81,145.76,43.04859374]
[1750356500259,19.03651911,145.81,145.77,19.03651911]
[1750356500458,19.03651911,145.81,145.76,24.01207463]
[1750356500693,19.03651911,145.81,145.77,19.03651911]
[1750356501667,6.85642966,145.85,145.78,6.85965152]
[1750356501885,19.03651911,145.81,145.78,6.85965152]
[1750356502207,19.03651911,145.8,145.78,6.85965152]
[1750356502362,19.03651911,145.79,145.76,6.86059275]
[1750356502562,19.03651911,145.77,145.76,6.86059275]
[1750356503376,19.03651911,145.77,145.75,6.86091595]
[1750356503772,19.03651911,145.76,145.7,17.15780233]
[1750356503980,19.03651911,145.74,145.7,19.03651911]
[1750356504379,26.0,145.77,145.68,30.30526084]
[1750356504380,19.03651911,145.72,145.68,30.30526084]
[1750356504580,19.03651911,145.72,145.68,49.34177995]
[1750356504982,26.0,145.77,145.68,49.34177995]
[1750356505193,19.03651911,145.73,145.69,19.03651911]
[1750356505373,19.03651911,145.73,145.7,6.86341798]
[1750356505776,26.0,145.79,145.72,19.03651911]
[1750356505973,19.03651911,145.76,145.72,19.03651911]
[1750356506175,26.0,145.79,145.72,19.03651911]
[1750356506608,19.03651911,145.75,145.71,19.03651911]
[1750356506817,19.03651911,145.76,145.72,19.03651911]
[1750356507482,19.03651911,145.76,145.73,6.86200507]
[1750356507902,6.0634,145.8,145.73,25.89852418]
[1750356508119,19.03651911,145.79,145.75,19.03651911]
[1750356508490,19.03651911,145.78,145.74,19.03651911]
[1750356508899,19.03651911,145.77,145.73,43.05353687]
[1750356509212,26.0,145.79,145.73,43.05353687]
[1750356509389,19.03651911,145.77,145.73,130.75353687]
[1750356510595,19.03651911,145.76,145.73,94.56200507]
[1750356511396,26.0,145.77,145.73,113.59852418]
[1750356511601,26.0,145.77,145.73,94.56200507]
[1750356511913,19.03651911,145.75,145.72,6.86220426]
[1750356512113,19.03651911,145.73,145.7,6.86341798]
[1750356512301,19.03651911,145.72,145.7,6.86341798]
[1750356512618,19.03651911,145.74,145.7,25.89993709]
[1750356513503,19.03651911,145.73,145.7,6.86341798]
[1750356514010,19.03651911,145.71,145.68,6.28]
[1750356514410,19.03651911,145.69,145.66,87.7]
[1750356514718,19.03651911,145.67,145.64,18.64964886]
[1750356514897,19.03651911,145.67,145.64,25.51589439]
[1750356515713,19.03651911,145.69,145.64,61.71802734]
[1750356516018,19.03651911,145.69,145.64,90.23802734]
[1750356516201,19.03651911,145.69,145.64,71.20150823]
[1750356516410,19.03651911,145.69,145.65,19.03651911]
[1750356517113,19.03651911,145.69,145.65,106.73651911]
[1750356517504,19.03651911,145.69,145.66,6.86530275]
[1750356517705,19.03651911,145.7,145.66,6.86530275]
[1750356519210,19.03651911,145.72,145.68,19.03651911]
[1750356519410,19.03651911,145.73,145.69,19.03651911]
[1750356519814,19.03651911,145.73,145.69,106.73651911]
[1750356520005,45.03651911,145.73,145.69,106.73651911]
[1750356520321,19.03651911,145.75,145.71,19.03651911]
[1750356520830,19.03651911,145.75,145.72,6.86247598]
[1750356521210,19.03651911,145.73,145.7,6.86341798]
[1750356521409,19.03651911,145.72,145.7,6.86341798]
[1750356521924,19.03651911,145.73,145.7,6.86341798]
[1750356522428,19.03651911,145.73,145.69,24.02278706]
[1750356522627,26.0,145.76,145.7,37.68616797]
[1750356522822,19.03651911,145.75,145.7,37.68616797]
[1750356523025,19.03651911,145.75,145.71,19.03651911]
[1750356523213,19.03651911,145.74,145.7,18.64964886]
[1750356523415,19.03651911,145.74,145.7,37.68616797]
[1750356524018,19.03651911,145.74,145.71,6.86294694]
[1750356524216,19.03651911,145.73,145.71,6.86294694]
[1750356524937,26.0,145.76,145.71,6.86294694]
[1750356525112,19.03651911,145.74,145.71,6.86294694]
[1750356526022,19.03651911,145.74,145.71,24.02031431]
[1750356527242,26.0,145.76,145.71,24.02031431]
[1750356527243,19.03651911,145.72,145.71,6.86294694]
[1750356527444,19.03651911,145.72,145.71,94.56294694]
[1750356527620,19.03651911,145.74,145.71,94.56294694]
[1750356528615,26.0,145.77,145.71,94.56294694]
[1750356528943,19.03651911,145.74,145.71,94.56294694]
[1750356529824,19.03651911,145.73,145.71,94.56294694]
[1750356530634,19.03651911,145.74,145.71,94.56294694]
[1750356530815,6.0634,145.8,145.71,111.72031431]
[1750356531021,19.03651911,145.75,145.71,130.75683342]
[1750356531217,19.03651911,145.75,145.71,111.72031431]
[1750356531442,19.03651911,145.75,145.71,130.75683342]
[1750356531847,45.03651911,145.77,145.73,24.01701776]
[1750356532031,45.03651911,145.77,145.73,111.71701776]
[1750356532231,19.03651911,145.77,145.73,130.75353687]
[1750356532573,19.03651911,145.76,145.73,111.71701776]
[1750356533041,19.03651911,145.75,145.73,94.56200507]
[1750356533617,19.03651911,145.74,145.73,94.56200507]
[1750356534435,19.03651911,145.74,145.73,6.86200507]
[1750356535750,19.03651911,145.75,145.73,6.86200507]
[1750356535926,19.03651911,145.75,145.72,24.01864148]
[1750356536249,19.03651911,145.74,145.72,24.01864148]
[1750356536657,6.0634,145.8,145.73,37.68616797]
[1750356536857,19.03651911,145.78,145.73,153.90616797]
[1750356537855,19.03651911,145.79,145.75,19.03651911]
[1750356538055,19.03651911,145.8,145.76,19.03651911]
[1750356538760,19.03651911,145.8,145.75,47.55651911]
[1750356538960,19.03651911,145.79,145.75,47.55651911]
[1750356539468,19.03651911,145.78,145.75,28.52]
[1750356539645,1.6513,145.81,145.75,28.52]
[1750356539646,19.03651911,145.79,145.75,28.52]
[1750356540079,45.03651911,145.8,145.76,25.89711186]
[1750356540451,1.5834,145.84,145.78,19.03651911]
[1750356540653,20.61991911,145.84,145.79,19.03651911]
[1750356540859,19.03651911,145.85,145.8,19.03651911]
[1750356541060,19.03651911,145.84,145.8,19.03651911]
[1750356541536,19.03651911,145.85,145.81,19.03651911]
[1750356541741,45.03651911,145.85,145.81,19.03651911]
[1750356541942,1.6489,145.88,145.83,36.17976809]
[1750356542247,46.68541911,145.88,145.83,123.87976809]
[1750356542968,20.68541911,145.88,145.84,19.03651911]
[1750356543344,46.68541911,145.88,145.85,6.85635927]
[1750356543543,19.03651911,145.87,145.85,6.85635927]
[1750356543745,27.6489,145.88,145.85,6.85635927]
[1750356543746,1.6489,145.88,145.85,6.85635927]
[1750356543964,19.03651911,145.87,145.85,6.85635927]
[1750356544570,27.6489,145.88,145.85,6.85635927]
[1750356544866,19.03651911,145.87,145.84,6.8568294]
[1750356546574,19.03651911,145.86,145.84,6.8568294]
[1750356547269,19.03651911,145.87,145.84,6.8568294]
[1750356547772,19.03651911,145.86,145.84,6.8568294]
[1750356547937,19.03651911,145.85,145.83,94.55710817]
[1750356548344,45.03651911,145.87,145.83,113.59362728]
[1750356548776,26.0,145.82,145.81,87.7]
[1750356548963,45.03651911,145.82,145.77,6.86012211]
[1750356549265,26.0,145.82,145.77,6.86012211]
[1750356549483,19.03651911,145.78,145.77,6.86012211]
[1750356549951,26.0,145.82,145.77,19.03651911]
[1750356550150,45.03651911,145.82,145.78,19.03651911]
[1750356550347,19.03651911,145.83,145.79,19.03651911]
[1750356550549,19.03651911,145.83,145.75,193.1686883]
[1750356550744,19.03651911,145.81,145.77,19.03651911]
[1750356551265,19.03651911,145.82,145.78,19.03651911]
[1750356551675,26.0,145.84,145.78,19.03651911]
[1750356551968,19.03651911,145.83,145.8,6.85871056]
[1750356552173,19.03651911,145.81,145.8,6.85871056]
[1750356552753,19.03651911,145.82,145.8,6.85871056]
[1750356553369,6.0413,145.85,145.79,17.14774283]
[1750356553370,6.0413,145.85,145.79,24.00692384]
[1750356553673,19.03651911,145.83,145.79,43.04344295]
[1750356553974,6.0413,145.85,145.79,43.04344295]
[1750356553975,19.03651911,145.82,145.79,24.00692384]
[1750356555268,19.03651911,145.83,145.79,43.04344295]
[1750356555476,19.03651911,145.83,145.79,130.74344295]
[1750356557080,19.03651911,145.82,145.79,111.70692384]
[1750356558879,11.12182369,145.82,145.79,111.70692384]
[1750356559681,11.12182369,145.84,145.8,11.12182369]
[1750356560197,11.12182369,145.85,145.81,11.12182369]
[1750356560560,11.12182369,145.86,145.82,6.85776985]
[1750356560766,11.12182369,145.86,145.82,94.55776985]
[1750356561088,11.12182369,145.85,145.82,94.55776985]
[1750356561984,26.0,145.87,145.82,122.82401817]
[1750356561985,11.12182369,145.87,145.82,122.82401817]
[1750356562155,11.12182369,145.86,145.82,122.82401817]
[1750356562676,11.12182369,145.86,145.82,111.70219448]
[1750356563058,1.6489,145.88,145.82,111.70219448]
[1750356563260,11.12182369,145.86,145.82,111.70219448]
[1750356563460,11.12182369,145.86,145.82,122.82401817]
[1750356564385,11.12182369,145.86,145.82,111.70219448]
[1750356564567,11.12182369,145.86,145.82,122.82401817]
[1750356565888,11.12182369,145.85,145.82,111.70219448]
[1750356566070,26.0,145.9,145.84,11.12182369]
[1750356566276,11.12182369,145.88,145.84,11.12182369]
[1750356566583,37.12182369,145.89,145.85,11.12182369]
[1750356566782,26.0,145.89,145.84,18.64964886]
[1750356566970,11.12182369,145.89,145.85,11.12182369]
[1750356568371,11.12182369,145.89,145.86,6.8558892]
[1750356568576,37.12182369,145.9,145.86,6.8558892]
[1750356569087,11.12182369,145.89,145.86,6.8558892]
[1750356569276,37.12182369,145.89,145.86,6.8558892]
[1750356570773,26.0,145.89,145.86,6.8558892]
[1750356570971,37.12182369,145.89,145.85,94.55635927]
[1750356571187,11.12182369,145.86,145.85,94.55635927]
[1750356571377,11.12182369,145.87,145.85,6.85635927]
[1750356572492,11.12182369,145.86,145.83,6.85729959]
[1750356575603,11.12182369,145.87,145.83,17.97912328]
[1750356576097,37.12182369,145.89,145.85,11.12182369]
[1750356576297,37.12182369,145.89,145.85,98.82182369]
[1750356577490,11.12182369,145.88,145.85,87.7]
[1750356577800,11.12182369,145.87,145.85,94.55620251]
[1750356579498,26.0,145.89,145.85,94.55620251]
[1750356579700,11.12182369,145.87,145.85,94.55620251]
[1750356580088,26.0,145.89,145.85,94.55620251]
[1750356580289,11.12182369,145.88,145.85,94.55620251]
[1750356581179,26.0,145.89,145.85,94.55620251]
[1750356581374,11.12182369,145.88,145.85,94.55620251]
[1750356582685,26.0,145.89,145.86,11.12182369]
[1750356583102,37.12182369,145.89,145.85,122.81892438]
[1750356584290,11.12182369,145.89,145.85,122.81892438]
[1750356584500,11.12182369,145.91,145.87,11.12182369]
[1750356584695,31.1121711,145.92,145.88,11.12182369]
[1750356584905,31.1121711,145.92,145.89,11.12182369]
[1750356584906,26.0,145.92,145.89,11.12182369]
[1750356585609,26.0,145.92,145.89,98.82182369]
[1750356585809,37.12182369,145.92,145.89,87.7]
[1750356586386,37.12182369,145.92,145.9,6.85400959]
[1750356586592,11.12182369,145.91,145.9,6.85400959]
[1750356587099,37.12182369,145.92,145.9,6.85400959]
[1750356587906,26.0,145.92,145.9,6.85400959]
[1750356588309,37.12182369,145.92,145.9,6.85400959]
[1750356589716,37.12182369,145.92,145.89,94.55432112]
[1750356591004,11.12182369,145.9,145.88,87.7]
[1750356591201,26.0,145.89,145.87,87.7]
[1750356591511,11.12182369,145.88,145.87,87.7]
[1750356592715,11.12182369,145.88,145.87,94.5553649]
[1750356593310,11.12182369,145.89,145.87,94.5553649]
[1750356594194,37.12182369,145.9,145.87,94.5553649]
[1750356595501,11.12182369,145.89,145.87,94.5553649]
[1750356597297,11.12182369,145.88,145.87,94.5553649]
[1750356600234,11.12182369,145.88,145.87,87.7]
[1750356600451,22.24364738,145.88,145.87,87.7]
[1750356601110,11.12182369,145.88,145.85,6.85634483]
[1750356601297,6.64247541,145.89,145.85,6.85634483]
[1750356601298,11.12182369,145.86,145.85,6.85634483]
[1750356602120,5.11157541,145.89,145.85,42.64689187]
[1750356602426,8.61016108,145.95,145.85,42.64689187]
[1750356602427,11.12182369,145.92,145.88,11.12182369]
[1750356602613,11.12182369,145.9,145.88,18.64964886]
[1750356602809,11.12182369,145.9,145.89,6.8544794]